Workbook

Sheet Data Entry
A1: Date | B1: Raw TOC | C1: Raw Alk. | D1: Fin. TOC | E1: Fin. TTHM | F1: Fin HAA5 | G1: Coagulation pH | H1: Coagulant Dose | I1: Comments | J1: DBP IND | K1: Month Date | L1: Quarter Date
A2: 2017-04-01 | B2: 3.22 | C2: 28 | D2: 1.73 | G2: 6.84 | H2: 36 | J2: =IF(OR(Table1[[#This Row],[Fin. TTHM]]="",Table1[[#This Row],[Fin HAA5]]=""),"NO","YES") -> NO | K2: =VALUE(MONTH(Table1[[#This Row],[Date]]) &"/1/"&YEAR(Table1[[#This Row],[Date]])) -> 2017-04-01 | L2: =IF("Q"&ROUNDUP(MONTH(K2)/3,0)="Q1",VALUE("1/1/"&YEAR(K2)),IF("Q"&ROUNDUP(MONTH(K2)/3,0)="Q2",VALUE("4/1/"&YEAR(K2)),IF("Q"&ROUNDUP(MONTH(K2)/3,0)="Q3",VALUE("7/1/"&YEAR(K2)),IF("Q" & ROUNDUP(MONTH(K2)/3,0)="Q4", VALUE("10/1/"&YEAR(K2)),"")))) -> 2017-04-01
A3: 2017-05-01 | B3: 3.3 | C3: 25 | D3: 1.98 | G3: 6.72 | H3: 36 | J3: =IF(OR(Table1[[#This Row],[Fin. TTHM]]="",Table1[[#This Row],[Fin HAA5]]=""),"NO","YES") -> NO | K3: =VALUE(MONTH(Table1[[#This Row],[Date]]) &"/1/"&YEAR(Table1[[#This Row],[Date]])) -> 2017-05-01 | L3: 2017-04-01
A4: 2017-06-01 | B4: 3.28 | C4: 25 | D4: 1.39 | G4: 6.58 | H4: 36 | J4: =IF(OR(Table1[[#This Row],[Fin. TTHM]]="",Table1[[#This Row],[Fin HAA5]]=""),"NO","YES") -> NO | K4: =VALUE(MONTH(Table1[[#This Row],[Date]]) &"/1/"&YEAR(Table1[[#This Row],[Date]])) -> 2017-06-01 | L4: 2017-04-01
A5: 2017-07-01 | B5: 3.77 | C5: 28 | D5: 1.9 | G5: 6.62 | H5: 36 | J5: =IF(OR(Table1[[#This Row],[Fin. TTHM]]="",Table1[[#This Row],[Fin HAA5]]=""),"NO","YES") -> NO | K5: =VALUE(MONTH(Table1[[#This Row],[Date]]) &"/1/"&YEAR(Table1[[#This Row],[Date]])) -> 2017-07-01 | L5: 2017-07-01
A6: 2017-08-01 | B6: 3.35 | C6: 34 | D6: 1.81 | G6: 6.69 | H6: 36 | J6: =IF(OR(Table1[[#This Row],[Fin. TTHM]]="",Table1[[#This Row],[Fin HAA5]]=""),"NO","YES") -> NO | K6: =VALUE(MONTH(Table1[[#This Row],[Date]]) &"/1/"&YEAR(Table1[[#This Row],[Date]])) -> 2017-08-01 | L6: 2017-07-01
A7: 2017-09-01 | B7: 3.67 | C7: 33 | D7: 2.23 | G7: 6.76 | H7: 36 | J7: =IF(OR(Table1[[#This Row],[Fin. TTHM]]="",Table1[[#This Row],[Fin HAA5]]=""),"NO","YES") -> NO | K7: =VALUE(MONTH(Table1[[#This Row],[Date]]) &"/1/"&YEAR(Table1[[#This Row],[Date]])) -> 2017-09-01 | L7: 2017-07-01
A8: 2017-10-01 | B8: 5.28 | C8: 33 | D8: 2.47 | G8: 6.84 | H8: 36 | J8: =IF(OR(Table1[[#This Row],[Fin. TTHM]]="",Table1[[#This Row],[Fin HAA5]]=""),"NO","YES") -> NO | K8: =VALUE(MONTH(Table1[[#This Row],[Date]]) &"/1/"&YEAR(Table1[[#This Row],[Date]])) -> 2017-10-01 | L8: 2017-10-01
A9: 2017-11-01 | B9: 4.75 | C9: 35 | D9: 2.3 | G9: 6.92 | H9: 36 | J9: =IF(OR(Table1[[#This Row],[Fin. TTHM]]="",Table1[[#This Row],[Fin HAA5]]=""),"NO","YES") -> NO | K9: =VALUE(MONTH(Table1[[#This Row],[Date]]) &"/1/"&YEAR(Table1[[#This Row],[Date]])) -> 2017-11-01 | L9: 2017-10-01
A10: 2017-12-01 | B10: 5.09 | C10: 35 | D10: 2.52 | G10: 6.78 | H10: 36 | J10: =IF(OR(Table1[[#This Row],[Fin. TTHM]]="",Table1[[#This Row],[Fin HAA5]]=""),"NO","YES") -> NO | K10: =VALUE(MONTH(Table1[[#This Row],[Date]]) &"/1/"&YEAR(Table1[[#This Row],[Date]])) -> 2017-12-01 | L10: 2017-10-01
A11: 2018-01-01 | B11: 4.66 | C11: 28 | D11: 1.75 | G11: 6.49 | H11: 36 | J11: =IF(OR(Table1[[#This Row],[Fin. TTHM]]="",Table1[[#This Row],[Fin HAA5]]=""),"NO","YES") -> NO | K11: =VALUE(MONTH(Table1[[#This Row],[Date]]) &"/1/"&YEAR(Table1[[#This Row],[Date]])) -> 2018-01-01 | L11: 2018-01-01
A12: 2018-02-01 | B12: 5.11 | C12: 28 | D12: 2.53 | G12: 6.76 | H12: 36 | J12: =IF(OR(Table1[[#This Row],[Fin. TTHM]]="",Table1[[#This Row],[Fin HAA5]]=""),"NO","YES") -> NO | K12: =VALUE(MONTH(Table1[[#This Row],[Date]]) &"/1/"&YEAR(Table1[[#This Row],[Date]])) -> 2018-02-01 | L12: 2018-01-01
A13: 2018-03-01 | B13: 5.11 | C13: 28 | D13: 1.84 | G13: 6.6 | H13: 36 | J13: =IF(OR(Table1[[#This Row],[Fin. TTHM]]="",Table1[[#This Row],[Fin HAA5]]=""),"NO","YES") -> NO | K13: =VALUE(MONTH(Table1[[#This Row],[Date]]) &"/1/"&YEAR(Table1[[#This Row],[Date]])) -> 2018-03-01 | L13: 2018-01-01
A14: 2015-04-01 | E14: 0.0218 | F14: 0.0141 | J14: =IF(OR(Table1[[#This Row],[Fin. TTHM]]="",Table1[[#This Row],[Fin HAA5]]=""),"NO","YES") -> YES | K14: =VALUE(MONTH(Table1[[#This Row],[Date]]) &"/1/"&YEAR(Table1[[#This Row],[Date]])) -> 2015-04-01 | L14: =IF("Q"&ROUNDUP(MONTH(K14)/3,0)="Q1",VALUE("1/1/"&YEAR(K14)),IF("Q"&ROUNDUP(MONTH(K14)/3,0)="Q2",VALUE("4/1/"&YEAR(K14)),IF("Q"&ROUNDUP(MONTH(K14)/3,0)="Q3",VALUE("7/1/"&YEAR(K14)),IF("Q" & ROUNDUP(MONTH(K14)/3,0)="Q4", VALUE("10/1/"&YEAR(K14)),"")))) -> 2015-04-01
A15: 2015-07-01 | E15: 0.0248 | F15: 0.0142 | J15: =IF(OR(Table1[[#This Row],[Fin. TTHM]]="",Table1[[#This Row],[Fin HAA5]]=""),"NO","YES") -> YES | K15: =VALUE(MONTH(Table1[[#This Row],[Date]]) &"/1/"&YEAR(Table1[[#This Row],[Date]])) -> 2015-07-01 | L15: 2015-07-01
A16: 2015-10-01 | E16: 0.0111 | F16: 0.00934 | J16: =IF(OR(Table1[[#This Row],[Fin. TTHM]]="",Table1[[#This Row],[Fin HAA5]]=""),"NO","YES") -> YES | K16: =VALUE(MONTH(Table1[[#This Row],[Date]]) &"/1/"&YEAR(Table1[[#This Row],[Date]])) -> 2015-10-01 | L16: 2015-10-01
A17: 2016-01-01 | E17: 0.007 | F17: 0.012 | J17: =IF(OR(Table1[[#This Row],[Fin. TTHM]]="",Table1[[#This Row],[Fin HAA5]]=""),"NO","YES") -> YES | K17: =VALUE(MONTH(Table1[[#This Row],[Date]]) &"/1/"&YEAR(Table1[[#This Row],[Date]])) -> 2016-01-01 | L17: 2016-01-01
A18: 2016-04-01 | E18: 0.0399 | F18: 0.0237 | J18: =IF(OR(Table1[[#This Row],[Fin. TTHM]]="",Table1[[#This Row],[Fin HAA5]]=""),"NO","YES") -> YES | K18: =VALUE(MONTH(Table1[[#This Row],[Date]]) &"/1/"&YEAR(Table1[[#This Row],[Date]])) -> 2016-04-01 | L18: 2016-04-01
A19: 2016-07-01 | E19: 0.0301 | F19: 0.0202 | J19: =IF(OR(Table1[[#This Row],[Fin. TTHM]]="",Table1[[#This Row],[Fin HAA5]]=""),"NO","YES") -> YES | K19: =VALUE(MONTH(Table1[[#This Row],[Date]]) &"/1/"&YEAR(Table1[[#This Row],[Date]])) -> 2016-07-01 | L19: 2016-07-01
A20: 2016-10-01 | E20: 0.0151 | F20: 0.014 | J20: =IF(OR(Table1[[#This Row],[Fin. TTHM]]="",Table1[[#This Row],[Fin HAA5]]=""),"NO","YES") -> YES | K20: =VALUE(MONTH(Table1[[#This Row],[Date]]) &"/1/"&YEAR(Table1[[#This Row],[Date]])) -> 2016-10-01 | L20: 2016-10-01
A21: 2017-01-01 | E21: 0.00653 | F21: 0.00842 | J21: =IF(OR(Table1[[#This Row],[Fin. TTHM]]="",Table1[[#This Row],[Fin HAA5]]=""),"NO","YES") -> YES | K21: =VALUE(MONTH(Table1[[#This Row],[Date]]) &"/1/"&YEAR(Table1[[#This Row],[Date]])) -> 2017-01-01 | L21: 2017-01-01
A22: 2017-04-01 | E22: 0.0284 | F22: 0.0241 | J22: =IF(OR(Table1[[#This Row],[Fin. TTHM]]="",Table1[[#This Row],[Fin HAA5]]=""),"NO","YES") -> YES | K22: =VALUE(MONTH(Table1[[#This Row],[Date]]) &"/1/"&YEAR(Table1[[#This Row],[Date]])) -> 2017-04-01 | L22: 2017-04-01
A23: 2017-07-01 | E23: 0.043 | F23: 0.037 | J23: =IF(OR(Table1[[#This Row],[Fin. TTHM]]="",Table1[[#This Row],[Fin HAA5]]=""),"NO","YES") -> YES | K23: =VALUE(MONTH(Table1[[#This Row],[Date]]) &"/1/"&YEAR(Table1[[#This Row],[Date]])) -> 2017-07-01 | L23: 2017-07-01
A24: 2017-10-01 | E24: 0.0329 | F24: 0.0202 | J24: =IF(OR(Table1[[#This Row],[Fin. TTHM]]="",Table1[[#This Row],[Fin HAA5]]=""),"NO","YES") -> YES | K24: =VALUE(MONTH(Table1[[#This Row],[Date]]) &"/1/"&YEAR(Table1[[#This Row],[Date]])) -> 2017-10-01 | L24: 2017-10-01
A25: 2018-01-01 | E25: 0.0216 | F25: 0.0161 | J25: =IF(OR(Table1[[#This Row],[Fin. TTHM]]="",Table1[[#This Row],[Fin HAA5]]=""),"NO","YES") -> YES | K25: =VALUE(MONTH(Table1[[#This Row],[Date]]) &"/1/"&YEAR(Table1[[#This Row],[Date]])) -> 2018-01-01 | L25: 2018-01-01

Sheet WTP INFO
B1: Water System Name | P1: End Date
B2: PWSID # AL0005555 | P2: 2018-03-31
B3: Water Treatment Plant Name
B4: Source Name
B5: TOC Results Past 12 Months
C6: =EDATE(N6,-11) -> 2017-04-01 | D6: =EDATE(N6,-10) -> 2017-05-01 | E6: =EDATE(N6,-9) -> 2017-06-01 | F6: =EDATE(N6,-8) -> 2017-07-01 | G6: =EDATE(N6,-7) -> 2017-08-01 | H6: =EDATE(N6,-6) -> 2017-09-01 | I6: =EDATE(N6,-5) -> 2017-10-01 | J6: =EDATE(N6,-4) -> 2017-11-01 | K6: =EDATE(N6,-3) -> 2017-12-01 | L6: =EDATE(N6,-2) -> 2018-01-01 | M6: =EDATE(N6,-1) -> 2018-02-01 | N6: =VALUE(MONTH(P2) &"/1/"&YEAR(P2)) -> 2018-03-01
B7: Raw Alkalinity | C7: =VLOOKUP(C6,'Pivot Tables'!$B$3:$E$1048576,3) -> 28 | D7: =VLOOKUP(D6,'Pivot Tables'!$B$3:$E$1048576,3) -> 25 | E7: =VLOOKUP(E6,'Pivot Tables'!$B$3:$E$1048576,3) -> 25 | F7: =VLOOKUP(F6,'Pivot Tables'!$B$3:$E$1048576,3) -> 28 | G7: =VLOOKUP(G6,'Pivot Tables'!$B$3:$E$1048576,3) -> 34 | H7: =VLOOKUP(H6,'Pivot Tables'!$B$3:$E$1048576,3) -> 33 | I7: =VLOOKUP(I6,'Pivot Tables'!$B$3:$E$1048576,3) -> 33 | J7: =VLOOKUP(J6,'Pivot Tables'!$B$3:$E$1048576,3) -> 35 | K7: =VLOOKUP(K6,'Pivot Tables'!$B$3:$E$1048576,3) -> 35 | L7: =VLOOKUP(L6,'Pivot Tables'!$B$3:$E$1048576,3) -> 28 | M7: =VLOOKUP(M6,'Pivot Tables'!$B$3:$E$1048576,3) -> 28 | N7: =VLOOKUP(N6,'Pivot Tables'!$B$3:$E$1048576,3) -> 28
B8: Raw TOC | C8: =VLOOKUP(C6,'Pivot Tables'!$B$3:$E$1048576,2) -> 3.22 | D8: =VLOOKUP(D6,'Pivot Tables'!$B$3:$E$1048576,2) -> 3.3 | E8: =VLOOKUP(E6,'Pivot Tables'!$B$3:$E$1048576,2) -> 3.28 | F8: =VLOOKUP(F6,'Pivot Tables'!$B$3:$E$1048576,2) -> 3.77 | G8: =VLOOKUP(G6,'Pivot Tables'!$B$3:$E$1048576,2) -> 3.35 | H8: =VLOOKUP(H6,'Pivot Tables'!$B$3:$E$1048576,2) -> 3.67 | I8: =VLOOKUP(I6,'Pivot Tables'!$B$3:$E$1048576,2) -> 5.28 | J8: =VLOOKUP(J6,'Pivot Tables'!$B$3:$E$1048576,2) -> 4.75 | K8: =VLOOKUP(K6,'Pivot Tables'!$B$3:$E$1048576,2) -> 5.09 | L8: =VLOOKUP(L6,'Pivot Tables'!$B$3:$E$1048576,2) -> 4.66 | M8: =VLOOKUP(M6,'Pivot Tables'!$B$3:$E$1048576,2) -> 5.11 | N8: =VLOOKUP(N6,'Pivot Tables'!$B$3:$E$1048576,2) -> 5.11
B9: Finished TOC | C9: =VLOOKUP(C6,'Pivot Tables'!$B$3:$E$1048576,4) -> 1.73 | D9: =VLOOKUP(D6,'Pivot Tables'!$B$3:$E$1048576,4) -> 1.98 | E9: =VLOOKUP(E6,'Pivot Tables'!$B$3:$E$1048576,4) -> 1.39 | F9: =VLOOKUP(F6,'Pivot Tables'!$B$3:$E$1048576,4) -> 1.9 | G9: =VLOOKUP(G6,'Pivot Tables'!$B$3:$E$1048576,4) -> 1.81 | H9: =VLOOKUP(H6,'Pivot Tables'!$B$3:$E$1048576,4) -> 2.23 | I9: =VLOOKUP(I6,'Pivot Tables'!$B$3:$E$1048576,4) -> 2.47 | J9: =VLOOKUP(J6,'Pivot Tables'!$B$3:$E$1048576,4) -> 2.3 | K9: =VLOOKUP(K6,'Pivot Tables'!$B$3:$E$1048576,4) -> 2.52 | L9: =VLOOKUP(L6,'Pivot Tables'!$B$3:$E$1048576,4) -> 1.75 | M9: =VLOOKUP(M6,'Pivot Tables'!$B$3:$E$1048576,4) -> 2.53 | N9: =VLOOKUP(N6,'Pivot Tables'!$B$3:$E$1048576,4) -> 1.84
B10: Removal Percentage | C10: =IFERROR((C8-C9)/C8,"") -> 0.4627329193 | D10: =IFERROR((D8-D9)/D8,"") -> 0.4 | E10: 0.5762195122 | F10: 0.4960212202 | G10: 0.4597014925 | H10: 0.3923705722 | I10: 0.5321969697 | J10: 0.5157894737 | K10: 0.5049115914 | L10: 0.6244635193 | M10: 0.5048923679 | N10: 0.6399217221
B11: Required Removal | C11: =IF(AND((C$7<=60),(C$8<=4)),0.35,IF(AND((C$7<=60),(C$8<=8)),0.45,IF(AND((C$7<=60),(C$8>8)),0.5,IF(AND((C$7<=120),(C$8<=4)),0.25,IF(AND((C$7<=120),(C$8<=8)),0.35,IF(AND((C$7<=120),(C$8>8)),0.4,IF(AND((C$7>120),(C$8<=4)),0.15,IF(AND((C$7>120),(C$8<=8)),0.25,IF(AND((C$7>120),(C$8>8)),0.3,0))))))))) -> 0.35 | D11: =IF(AND((D$7<=60),(D$8<=4)),0.35,IF(AND((D$7<=60),(D$8<=8)),0.45,IF(AND((D$7<=60),(D$8>8)),0.5,IF(AND((D$7<=120),(D$8<=4)),0.25,IF(AND((D$7<=120),(D$8<=8)),0.35,IF(AND((D$7<=120),(D$8>8)),0.4,IF(AND((D$7>120),(D$8<=4)),0.15,IF(AND((D$7>120),(D$8<=8)),0.25,IF(AND((D$7>120),(D$8>8)),0.3,0))))))))) -> 0.35 | E11: =IF(AND((E$7<=60),(E$8<=4)),0.35,IF(AND((E$7<=60),(E$8<=8)),0.45,IF(AND((E$7<=60),(E$8>8)),0.5,IF(AND((E$7<=120),(E$8<=4)),0.25,IF(AND((E$7<=120),(E$8<=8)),0.35,IF(AND((E$7<=120),(E$8>8)),0.4,IF(AND((E$7>120),(E$8<=4)),0.15,IF(AND((E$7>120),(E$8<=8)),0.25,IF(AND((E$7>120),(E$8>8)),0.3,0))))))))) -> 0.35 | F11: 0.35 | G11: 0.35 | H11: 0.35 | I11: 0.45 | J11: 0.45 | K11: 0.45 | L11: 0.45 | M11: 0.45 | N11: 0.45
B12: Calculated PR | C12: =IFERROR(((C8-C9)/C8)/C11,"") -> 1.322094055 | D12: =IFERROR(((D8-D9)/D8)/D11,"") -> 1.142857143 | E12: 1.646341463 | F12: 1.417203486 | G12: 1.313432836 | H12: 1.121058778 | I12: 1.182659933 | J12: 1.14619883 | K12: 1.122025759 | L12: 1.38769671 | M12: 1.12198304 | N12: 1.422048271
B13: Alternate PR | C13: =IF(OR((C8<2),(C9<2)),1,0) -> 1 | D13: =IF(OR((D8<2),(D9<2)),1,0) -> 1 | E13: 1 | F13: 1 | G13: 1 | H13: 0 | I13: 0 | J13: 0 | K13: 0 | L13: 1 | M13: 0 | N13: 1
B14: Selected PR | C14: =MAX(C12:C13) -> 1.322094055 | D14: =MAX(D12:D13) -> 1.142857143 | E14: 1.646341463 | F14: 1.417203486 | G14: 1.313432836 | H14: 1.121058778 | I14: 1.182659933 | J14: 1.14619883 | K14: 1.122025759 | L14: 1.38769671 | M14: 1.12198304 | N14: 1.422048271
B15: Compliance PR | C15: The Compliance PR must be greater than or equal to 1.00 or finished TOC average < 2.0 mg/L | N15: =IFERROR(AVERAGE(C14:N14),"ERROR") -> 1.278800025
B17: Finished TOC RAA Goal ≤ 1.7 mg/L
B19: FINISHED TOC GOAL | C19: 1.7 | D19: 1.7 | E19: 1.7 | F19: 1.7 | G19: 1.7 | H19: 1.7 | I19: 1.7 | J19: 1.7 | K19: 1.7 | L19: 1.7 | M19: 1.7 | N19: 1.7
B20: PR Regulatory Requirement | C20: 1 | D20: 1 | E20: 1 | F20: 1 | G20: 1 | H20: 1 | I20: 1 | J20: 1 | K20: 1 | L20: 1 | M20: 1 | N20: 1
B23: Coagulation pH | C23: =VLOOKUP(C$6,Table1[[#All],[Date]:[Comments]],7) -> 6.84 | D23: =VLOOKUP(D$6,Table1[[#All],[Date]:[Comments]],7) -> 6.72 | E23: =VLOOKUP(E$6,Table1[[#All],[Date]:[Comments]],7) -> 6.58 | F23: =VLOOKUP(F$6,Table1[[#All],[Date]:[Comments]],7) -> 6.62 | G23: =VLOOKUP(G$6,Table1[[#All],[Date]:[Comments]],7) -> 6.69 | H23: =VLOOKUP(H$6,Table1[[#All],[Date]:[Comments]],7) -> 6.76 | I23: =VLOOKUP(I$6,Table1[[#All],[Date]:[Comments]],7) -> 6.84 | J23: =VLOOKUP(J$6,Table1[[#All],[Date]:[Comments]],7) -> 6.92 | K23: =VLOOKUP(K$6,Table1[[#All],[Date]:[Comments]],7) -> 6.78 | L23: =VLOOKUP(L$6,Table1[[#All],[Date]:[Comments]],7) -> 6.49 | M23: =VLOOKUP(M$6,Table1[[#All],[Date]:[Comments]],7) -> 6.76 | N23: =VLOOKUP(N$6,Table1[[#All],[Date]:[Comments]],7) -> 6.6
B24: Coagulant Dose | C24: =VLOOKUP(C$6,Table1[[#All],[Date]:[Comments]],8) -> 36 | D24: =VLOOKUP(D$6,Table1[[#All],[Date]:[Comments]],8) -> 36 | E24: =VLOOKUP(E$6,Table1[[#All],[Date]:[Comments]],8) -> 36 | F24: =VLOOKUP(F$6,Table1[[#All],[Date]:[Comments]],8) -> 36 | G24: =VLOOKUP(G$6,Table1[[#All],[Date]:[Comments]],8) -> 36 | H24: =VLOOKUP(H$6,Table1[[#All],[Date]:[Comments]],8) -> 36 | I24: =VLOOKUP(I$6,Table1[[#All],[Date]:[Comments]],8) -> 36 | J24: =VLOOKUP(J$6,Table1[[#All],[Date]:[Comments]],8) -> 36 | K24: =VLOOKUP(K$6,Table1[[#All],[Date]:[Comments]],8) -> 36 | L24: =VLOOKUP(L$6,Table1[[#All],[Date]:[Comments]],8) -> 36 | M24: =VLOOKUP(M$6,Table1[[#All],[Date]:[Comments]],8) -> 36 | N24: =VLOOKUP(N$6,Table1[[#All],[Date]:[Comments]],8) -> 36
B40: WTP Effluent Individual DBP Sample Results (Past 3 Years)
B41: WTP Effluent | C41: ="Q" & ROUNDUP(MONTH(C46)/3,0)&" " & YEAR(C46) -> Q2 2015 | D41: Q3 2015 | E41: Q4 2015 | F41: Q1 2016 | G41: Q2 2016 | H41: Q3 2016 | I41: Q4 2016 | J41: Q1 2017 | K41: Q2 2017 | L41: Q3 2017 | M41: Q4 2017 | N41: ="Q" & ROUNDUP(MONTH(N46)/3,0)&" " & YEAR(N46) -> Q1 2018
B42: TTHM | C42: =VLOOKUP(C46,'Pivot Tables'!$G$3:$I$1048576,2)*1000 -> 21.8 | D42: =VLOOKUP(D46,'Pivot Tables'!$G$3:$I$1048576,2)*1000 -> 24.8 | E42: =VLOOKUP(E46,'Pivot Tables'!$G$3:$I$1048576,2)*1000 -> 11.1 | F42: =VLOOKUP(F46,'Pivot Tables'!$G$3:$I$1048576,2)*1000 -> 7 | G42: =VLOOKUP(G46,'Pivot Tables'!$G$3:$I$1048576,2)*1000 -> 39.9 | H42: =VLOOKUP(H46,'Pivot Tables'!$G$3:$I$1048576,2)*1000 -> 30.1 | I42: =VLOOKUP(I46,'Pivot Tables'!$G$3:$I$1048576,2)*1000 -> 15.1 | J42: =VLOOKUP(J46,'Pivot Tables'!$G$3:$I$1048576,2)*1000 -> 6.53 | K42: =VLOOKUP(K46,'Pivot Tables'!$G$3:$I$1048576,2)*1000 -> 28.4 | L42: =VLOOKUP(L46,'Pivot Tables'!$G$3:$I$1048576,2)*1000 -> 43 | M42: =VLOOKUP(M46,'Pivot Tables'!$G$3:$I$1048576,2)*1000 -> 32.9 | N42: =VLOOKUP(N46,'Pivot Tables'!$G$3:$I$1048576,2)*1000 -> 21.6
B43: HAA5 | C43: =VLOOKUP(C46,'Pivot Tables'!$G$3:$I$1048576,3)*1000 -> 14.1 | D43: =VLOOKUP(D46,'Pivot Tables'!$G$3:$I$1048576,3)*1000 -> 14.2 | E43: =VLOOKUP(E46,'Pivot Tables'!$G$3:$I$1048576,3)*1000 -> 9.34 | F43: =VLOOKUP(F46,'Pivot Tables'!$G$3:$I$1048576,3)*1000 -> 12 | G43: =VLOOKUP(G46,'Pivot Tables'!$G$3:$I$1048576,3)*1000 -> 23.7 | H43: =VLOOKUP(H46,'Pivot Tables'!$G$3:$I$1048576,3)*1000 -> 20.2 | I43: =VLOOKUP(I46,'Pivot Tables'!$G$3:$I$1048576,3)*1000 -> 14 | J43: =VLOOKUP(J46,'Pivot Tables'!$G$3:$I$1048576,3)*1000 -> 8.42 | K43: =VLOOKUP(K46,'Pivot Tables'!$G$3:$I$1048576,3)*1000 -> 24.1 | L43: =VLOOKUP(L46,'Pivot Tables'!$G$3:$I$1048576,3)*1000 -> 37 | M43: =VLOOKUP(M46,'Pivot Tables'!$G$3:$I$1048576,3)*1000 -> 20.2 | N43: =VLOOKUP(N46,'Pivot Tables'!$G$3:$I$1048576,3)*1000 -> 16.1
B45: TTHM Goal LRRA ≤ 20 mg/L and HAA5 Goal LRAA ≤ 15 mg/L
C46: =EDATE(D46,-3) -> 2015-06-01 | D46: 2015-09-01 | E46: 2015-12-01 | F46: 2016-03-01 | G46: 2016-06-01 | H46: 2016-09-01 | I46: 2016-12-01 | J46: 2017-03-01 | K46: 2017-06-01 | L46: 2017-09-01 | M46: 2017-12-01 | N46: =EDATE(N6,0) -> 2018-03-01

Sheet Pivot Tables (hidden)
B1: DBP IND | C1: NO | G1: DBP IND | H1: YES
B3: Row Labels | C3: Average of Raw TOC | D3: Average of Raw Alk. | E3: Average of Fin. TOC | G3: Row Labels | H3: Average of Fin. TTHM | I3: Average of Fin HAA5
B4: 2017-04-01 | C4: 3.22 | D4: 28 | E4: 1.73 | G4: 2015-04-01 | H4: 0.0218 | I4: 0.0141
B5: 2017-05-01 | C5: 3.3 | D5: 25 | E5: 1.98 | G5: 2015-07-01 | H5: 0.0248 | I5: 0.0142
B6: 2017-06-01 | C6: 3.28 | D6: 25 | E6: 1.39 | G6: 2015-10-01 | H6: 0.0111 | I6: 0.00934
B7: 2017-07-01 | C7: 3.77 | D7: 28 | E7: 1.9 | G7: 2016-01-01 | H7: 0.007 | I7: 0.012
B8: 2017-08-01 | C8: 3.35 | D8: 34 | E8: 1.81 | G8: 2016-04-01 | H8: 0.0399 | I8: 0.0237
B9: 2017-09-01 | C9: 3.67 | D9: 33 | E9: 2.23 | G9: 2016-07-01 | H9: 0.0301 | I9: 0.0202
B10: 2017-10-01 | C10: 5.28 | D10: 33 | E10: 2.47 | G10: 2016-10-01 | H10: 0.0151 | I10: 0.014
B11: 2017-11-01 | C11: 4.75 | D11: 35 | E11: 2.3 | G11: 2017-01-01 | H11: 0.00653 | I11: 0.00842
B12: 2017-12-01 | C12: 5.09 | D12: 35 | E12: 2.52 | G12: 2017-04-01 | H12: 0.0284 | I12: 0.0241
B13: 2018-01-01 | C13: 4.66 | D13: 28 | E13: 1.75 | G13: 2017-07-01 | H13: 0.043 | I13: 0.037
B14: 2018-02-01 | C14: 5.11 | D14: 28 | E14: 2.53 | G14: 2017-10-01 | H14: 0.0329 | I14: 0.0202
B15: 2018-03-01 | C15: 5.11 | D15: 28 | E15: 1.84 | G15: 2018-01-01 | H15: 0.0216 | I15: 0.0161
